Cogmind - Beta 17 @@@ ROGUE MODE // 2026.07.21 @ 11:24:39 Player: Zish Result: Destroyed by Y-45 Defender with Beam Rifle Performance ------------- Evolutions (0) 0 Regions Visited (1) 200 Robots Destroyed (17) 85 Value Destroyed (360) 360 Prototype IDs (1) 20 Alien Tech Used (0) 0 Bonus (7650) 7650 TOTAL SCORE: 8315 Bonus ------- Prayed to X0-1V1 5000 Major X0-1V1 Interference 2650 Cogmind --------- Core Integrity 0/150 Matter 108/150 Energy 717/1300 System Corruption 0% Temperature Cool (27) Movement Treading (320) Ox2 Location -10/Materials Parts ------- > --- POWER (1) -------- (None) > --- PROPULSION (1) --- Light Treads > --- UTILITY (2) ------ High-capacity Storage Unit X0-1V1's Piety Tracker > --- WEAPON (3) ------- Light Assault Rifle Heavy Assault Rifle Heavy Assault Rifle > --- INVENTORY (20) --- Ion Engine Light Ion Engine Light Ion Engine Light Treads Small Storage Unit Medium Laser Light Assault Rifle Datajack Hammer Peak State ------------ > --- POWER ------------ Ion Engine > --- PROPULSION ------- Light Treads > --- UTILITY ---------- High-capacity Storage Unit X0-1V1's Piety Tracker > --- WEAPON ----------- Heavy Assault Rifle Heavy Assault Rifle > --- INVENTORY -------- Ion Engine Light Ion Engine Light Ion Engine Light Treads Small Storage Unit Medium Laser Light Assault Rifle Light Assault Rifle Datajack Hammer [Rating: 21] Favorites ----------- Power Ion Engine Engine Ion Engine Propulsion Light Treads Treads Light Treads Utility High-capacity Storage Unit Device X0-1V1's Piety Tracker Storage High-capacity Storage Unit Weapon Light Assault Rifle Energy Gun Medium Laser Ballistic Gun Light Assault Rifle Build | -11 -10 ------- Run | Yrd Mat Slots Evolved . | . . Power . | . . Propulsion . | . . Utility . | . . Weapon . | . . Parts Attached 15 | 6 9 Power 2 | 1 1 Engine 2 | 1 1 Core . | . . Reactor . | . . Propulsion 4 | 2 2 Treads 4 | 2 2 Leg . | . . Wheel . | . . Hover . | . . Flight . | . . Utility 3 | 1 2 Device 1 | . 1 Storage 2 | 1 1 Processor . | . . Hackware . | . . Protection . | . . Artifact . | . . Weapon 6 | 2 4 Energy Gun 1 | 1 . Energy Cannon . | . . Ballistic Gun 5 | 1 4 Ballistic Cannon . | . . Launcher . | . . Special Weapon . | . . Impact Weapon . | . . Slashing Weapon . | . . Piercing Weapon . | . . Special Melee Weapon . | . . Unidentified Prototypes 1 | . 1 Parts Lost 5 | . 5 Power 1 | . 1 Propulsion 2 | . 2 Utility . | . . Weapon 2 | . 2 Highest Loss Streak 4 | . 4 To Critical Strikes . | . . Average Backups 6 | . 7 Power 2 | . 2 Propulsion . | . 1 Utility . | . . Weapon 2 | . 2 Tool/Special . | . . Unused Backups 5 | . 5 Power 2 | . 2 Propulsion . | . . Utility . | . . Weapon 2 | . 2 Tool/Special 1 | . 1 Average Slot Usage (%) 87 | . 87 Engine 13 | . 13 Treads 27 | . 27 Device 3 | . 3 Storage 14 | . 14 Energy Gun 13 | . 13 Ballistic Gun 15 | . 15 Peak Build Rating 21 | 6 21 Average Rating 9 | 4 9 On Entrance 3 | . 6 Avg Prop Armor Cover (%) . | . . Naked Turns . | . . Heaviest Build 53 | 11 53 Greatest Support 40 | 40 40 Greatest Overweight (x) 2 | . 2 Average Overweight (x) . | . . Largest Inventory Capacity 20 | 8 20 Average Capacity 18 | 6 19 Most Carried 13 | 2 13 Average Carried 7 | . 7 Final Capacity 20 | 8 20 Final Carried 9 | 2 9 Class Distribution -------------------- 97% | Mutant Dominant Class ---------------- Mutant | -10/Materials Resources | -11 -10 ----------- Run | Yrd Mat Matter Collected 391 | 188 203 Remotely . | . . Salvage Created 592 | . 592 Parts 27 | . 27 Haulers Intercepted 1 | . 1 Recyclers Shooed 2 | . 2 Parts Field Recycled . | . . Retrieved Matter . | . . Parts Self-Destructed . | . . Prevented . | . . Parts Restored . | . . Kills | -11 -10 ------- Run | Yrd Mat Combat Hostiles Destroyed 13 | . 13 Guns 12 | . 12 Classes Destroyed 6 | . 6 Worker 1 | . 1 Hauler 1 | . 1 Recycler 1 | . 1 Operator 1 | . 1 Swarmer 5 | . 5 Grunt 8 | . 8 Best Kill Streak 3 | . 3 Combat Bots Only 3 | . 3 Max Kills in Single Turn 1 | . 1 Gunslinging . | . . Exploded . | . . Melee . | . . Uniques/NPCs Destroyed . | . . Combat | -11 -10 -------- Run | Yrd Mat Hostile Shots Fired 104 | . 104 Missed 35 | . 35 Hits 69 | . 69 Projectile 69 | . 69 Critical Strikes 2 | . 2 Damage Taken 874 | . 874 Core 218 | . 218 Absorbed by Shields . | . . Ignored by Resistances 18 | . 18 Core Remaining (%) 100 | 100 . Volleys Fired 61 | . 61 Largest 3 | . 3 Hottest 70 | . 70 Shots Fired 120 | . 120 Gun 120 | . 120 Cannon . | . . Launcher . | . . Special . | . . Kinetic 70 | . 70 Thermal 50 | . 50 Explosive . | . . Electromagnetic . | . . Robot Hit Streak 13 | . 13 Robot Miss Streak 8 | . 8 Penetration Max . | . . Secondary Targets 1 | . 1 Max Gunslinging Chain 1 | . 1 Shots Hit Robots 76 | . 76 Core Hits 29 | . 29 Critical Kills . | . . Critical Parts Destroyed . | . . Critical Strikes 4 | . 4 Burn 4 | . 4 Melee Attacks . | . . Impact . | . . Slashing . | . . Piercing . | . . Sneak Attacks . | . . Combat Hostiles . | . . Follow-up Attacks . | . . Damage Inflicted 841 | . 841 Guns 841 | . 841 Cannons . | . . Explosions . | . . Melee . | . . Ramming . | . . Kinetic 368 | . 368 Thermal 473 | . 473 Explosive . | . . Electromagnetic . | . . Impact . | . . Slashing . | . . Piercing . | . . Highest Corruption 2 | . 2 Average Corruption 2 | . 2 Corruption Purged . | . . Corruption Blocked . | . . Effects 12 | . 12 Message Errors 3 | . 3 Matter Fused 1 | . 1 Heat Flow Errors 2 | . 2 Energy Discharges 2 | . 2 Data Loss (minor) 2 | . 2 Alerts 1 | . 1 Weapon Failures 1 | . 1 Overload Shots . | . . Overflow Damage . | . . Projectiles . | . . Explosions . | . . Melee . | . . Knockbacks . | . . Impact . | . . Kinetic . | . . Secondary . | . . Self-Inflicted Damage . | . . Shots . | . . Rammed . | . . Targets Rammed . | . . Kicked . | . . Crushed . | . . Highest Temperature 163 | . 163 Average Temperature 52 | . 52 Received Heat Transfer 297 | . 297 Siege Activations . | . . Martial Activations . | . . Shielding Activations . | . . Robots Disrupted . | . . Combat Hostiles . | . . Robots Corrupted . | . . Combat Hostiles . | . . Parts Fried . | . . Impact Corruptions . | . . Robots Melted 1 | . 1 Combat Hostiles 1 | . 1 Parts Melted 7 | . 7 Heat Transferred 1702 | . 1702 Parts Sabotaged . | . . Parts Stolen . | . . Parts Stripped . | . . Power Chain Reactions . | . . Alert | -11 -10 ------- Run | Yrd Mat Maximum Alert Level . | . . Low Security (%) 100 | 100 100 Level 1 . | . . Level 2 . | . . Level 3 . | . . Level 4 . | . . Level 5 . | . . High Security . | . . Max Security . | . . Peak Influence 79 | . 79 Initial . | . . Average 16 | . 17 Influence Increases 369 | . 369 Destroy 0b10 Robot/C 260 | . 260 Destroy 0b10 Robot/NC 20 | . 20 Destroy Leader 72 | . 72 Destroy Structure 2 | . 2 Lose Combat Pursuer 15 | . 15 Influence Decreases 320 | . 320 Time Decay 270 | . 270 Lost Part 50 | . 50 Squads Dispatched 8 | . 8 Investigation 5 | . 5 Extermination . | . . Reinforcement 3 | . 3 Assault . | . . Garrison . | . . Intercept . | . . Searches Triggered . | . . Construction Impeded . | . . Haulers Reinforced . | . . Active Scanning Responses . | . . Cargo Convoy Interrupts . | . . Stealth | -11 -10 --------- Run | Yrd Mat Distress Signals . | . . Communications Jammed . | . . Distress Signals . | . . Times Spotted 24 | . 24 Peak Tracking Total 4 | . 4 Tactical Retreats 1 | . 1 Traps | -11 -10 ------- Run | Yrd Mat Traps Triggered 3 | . 3 Indirectly . | . . Trap Hack Attempts . | . . Triggered . | . . Disarmed . | . . Reprogrammed . | . . Reused . | . . Traps Extracted . | . . Installed . | . . Triggered . | . . Machines | -11 -10 ---------- Run | Yrd Mat Machines Disabled . | . . Max in Single Turn . | . . Machines Repaired . | . . Machines Dismantled . | . . Machines Sabotaged . | . . Overloaded Fab Kills . | . . Hacking | -11 -10 --------- Run | Yrd Mat Machines Accessed 1 | . 1 Terminals 1 | . 1 Fabricators . | . . Repair Stations . | . . Recycling Units . | . . Scanalyzers . | . . Garrison Access . | . . Total Hacks 2 | . 2 Successful . | . . Failed 2 | . 2 Catastrophic 2 | . 2 Database Lockouts . | . . Manual 3 | . 3 Terminals 2 | . 2 Fabricators . | . . Repair Stations . | . . Recycling Units . | . . Scanalyzers . | . . Garrison Access . | . . Terminal Hacks . | . . Fabricator Hacks . | . . Repair Station Hacks . | . . Recycling Unit Hacks . | . . Scanalyzer . | . . Garrison Access Hacks . | . . Unauthorized Hacks . | . . Terminals . | . . Fabricators . | . . Repair Stations . | . . Recycling Units . | . . Scanalyzers . | . . Garrison Access . | . . Data Cores Recovered . | . . Used . | . . Hacking Detections 1 | . 1 Full Trace Events 1 | . 1 Feedback Events . | . . Feedback Blocked . | . . Robot Schematics Acquired . | . . Robots Built . | . . Authchips . | . . Time . | . . Total Robot Build Rating . | . . Part Schematics Acquired . | . . Parts Built . | . . Authchips . | . . Time . | . . Total Part Build Rating . | . . Part Studies Acquired . | . . Parts Repaired . | . . Time . | . . Parts Recycled . | . . Recycled Matter . | . . Retrieved Matter . | . . Retrieved Components . | . . Parts Scanalyzed . | . . Part Schematics Acquired . | . . Parts Damaged . | . . Bothacking | -11 -10 ------------ Run | Yrd Mat Used RIF Installer . | . . Robots Hacked . | . . Non-combat . | . . Combat . | . . Robot Hacks Applied . | . . Relay Couplers Released . | . . Fabnet Peak Effective % . | . . Robots Rewired . | . . Allies Hacked . | . . Hacks Repelled . | . . Allies | -11 -10 -------- Run | Yrd Mat Total Allies . | . . Largest Group . | . . Highest-Rated Group . | . . Highest-Rated Ally . | . . Total Orders . | . . Ally Attacks . | . . Total Damage . | . . Kills . | . . Allies Corrupted . | . . Allies Melted . | . . X0-1V1 Amusement Gains 3 | . 3 Good Acts 13 | . 13 Bad Acts 12 | . 12 Intel | -11 -10 ------- Run | Yrd Mat Active Infowar (turns) . | . . Robot Analysis Total . | . . Derelict Logs Recovered . | . . Drone Launches . | . . Drone Recoveries . | . . Exploration | -11 -10 ------------- Run | Yrd Mat Turns Passed 1789 | 81 1708 Spaces Moved 576 | 47 529 Core 4 | 4 . Treads 572 | 43 529 Legs . | . . Wheels . | . . Hover . | . . Flight . | . . Fastest Speed 50 | 50 160 Average Speed 229 | 150 236 Slowest Speed 320 | 160 320 Overloaded Moves . | . . Propulsion Burnouts . | . . Robots Hopped . | . . Potential Cave-ins . | . . Cave-ins Triggered . | . . Exploration Rate (%) 41 | 3 79 Regions Visited 1 Branch Regions . Pre-discovered Areas . | . . Known Exits Taken . | . . Unknown Exits Taken 1 | 1 . Scrap Searched . | . . Spaces Dug . | . . Terrain Destroyed . | . . Melee . | . . Projectile . | . . AOE . | . . Terrain Rammed . | . . Walls Destroyed . | . . Machines Disabled . | . . Actions | -11 -10 --------- Run | Yrd Mat Total 932 | 54 878 Wait 268 | . 268 Move 575 | 46 529 Hop . | . . Pick Up 10 | 2 8 Fast Attach 8 | 6 2 Attach 6 | . 6 Detach 2 | . 2 Swap 2 | . 2 Drop . | . . Fire 61 | . 61 Melee . | . . Ram . | . . Kick . | . . Crush . | . . Escape Stasis . | . . Rewire . | . . Trap . | . . Miscellaneous . | . . Route ------- -11/Scrapyard -10/Materials (discovered 6 exits: *Mat x3 / [*Min x2] / [*Sub]) History --------- Turn | Location | Event 11 | -11/Scrapyard | Discovered new exit (range 16) 82 | -11/Scrapyard | Entered Materials 232 | -10/Materials | Met 8R-AWN 275 | -10/Materials | Discovered new exit (range 5) 308 | -10/Materials | Build established: Mutant 830 | -10/Materials | Discovered new exit (range 5) 891 | -10/Materials | Discovered new exit (range 16) 1196 | -10/Materials | Discovered new exit (range 9) 1402 | -10/Materials | Discovered new exit (range 7) 1417 | -10/Materials | Prayed at D.C.S.S. Altar Unit 1509 | -10/Materials | X0-1V1 announced a LAN party 1585 | -10/Materials | KI resistance permanently improved by X0-1V1 (+10%; -100 max core) 1597 | -10/Materials | Identified exit to Materials 1597 | -10/Materials | X0-1V1 revealed exit location to -9/Materials 1630 | -10/Materials | X0-1V1 sent hostile S-10 Pest (x4) 1665 | -10/Materials | X0-1V1 foreshadows a heat wave 1685 | -10/Materials | X0-1V1 vaporized surrounding terrain (radius 19) 1697 | -10/Materials | X0-1V1 whisked you away to safety 1712 | -10/Materials | X0-1V1 activates XOMVISION 1720 | -10/Materials | X0-1V1 mutated your Propulsion slot to Weapon slot 1728 | -10/Materials | Lost 4 parts (2n2w) 1756 | -10/Materials | Core integrity fell below 50% 1765 | -10/Materials | X0-1V1 sent you into danger 1772 | -10/Materials | Core integrity fell below 20% 1790 | -10/Materials | Destroyed by Y-45 Defender with Beam Rifle Last Messages --------------- 01733_ O-16 Technician destroyed. 01736_ Acquired 15 matter. 01736_ X0-1V1: "Let the electrons flow!" (+1200 energy capacity) 01739_ R-06 Scavenger collects Hover Unit. 01745_ X0-1V1: "I had everything to do with that." 01753_ G-34 Mercenary destroyed. 01755_ X0-1V1: "Fire in the hole!" 01755_ G-34 Mercenary destroyed. 01762_ The unstable cave ceiling collapses. 01765_ X0-1V1: "Enjoy the ride!" 01768_ T-07 Excavator destroyed. 01780_ U-05 Engineer lays Concrete. 01781_ X0-1V1: "A box. Just for you." 01783_ U-05 Engineer builds a Wall. 01787_ U-05 Engineer lays Concrete. 01787_ Ion Engine destroyed. 01790_ Critical hit (Burn: +37). 01790_ X0-1V1: "It was about time." Map ----- +----------------------------------------------------+ | ### # "!* "" # # """ # | | # # "" | + # """%+ | | " # # ## """"" # # # "%% %! % | | " # %% / """"" # # # """ ! ####+#### | | " + #### """"" # ####### """ ## # | | ####??# # #?????# %""" ## """ # | | ################## ####### ## """ # | | #????????# ^ ## """ # | | #????????# ^ ## # | | """"" #????????# ^ ## # | | """"" #????????##### ^ ####### ######### | | """""???????????????# % #?????# #?####### | | ???????????"""" #?????# # | | #?????? " #?????# # | | #????? " """""""# #?????# + | | #########????? " """"""## #?????# # | | ?????????????? " " + #?????# # | | ?#####??????? " " " #????## ######### | | ????????"""""" " "" ; #????# ######## | | """"???????? *%= ; "T !; "????# | | """" ??????? ="";" "" ; #????# " | | """" #??Y?? " ; ; "????# ! | | #?????? " ;;#g##;; #????# ######## | | #????? " ; #k #??o?#######??????? | | #????" " ;%= # #?????????????????? | | #????" " % @ # #?????????????????? | | "T" #????" """";; # #????*??!?????????? | | ?#######??? " " # #?????????????????? | | ??????????? " "! /! # # #?????????????????? | | ??????????? " " ! # %# #??=!?????????????? | | ??????????? " "! # # +??=!?????????????? | | ???????????""+"""""""# # ???!??????????????? | | ???????????? " u " #?????????????????? | | ??##???#???? """""""" #?????????????????? | | ?? ????? w " #?????????????????? | | ?""" #????? t #?????????????????? | | ?""" #??????? " #?????????????????? | | """ !????????? """"+""# ??????????????????? | | ??????????? "" T???? ??????????????????? | | """ ??????????????????????< ??????????????????? | | """ #?????????????????????????????????????????? | | """ #?????????????????????????????????????????? | | #?????????????????????????????????????????? | | ########?????????????????????????????????????????? | | ?????????????????????????????????????????????????? | | #????????????????????????????????????????????????? | | #????????????????????????????????????????????????? | | #????????????????????????????????????????????????? | | #????????????????????????????????????????????????? | | #????????????????????????????????????????????????? | +----------------------------------------------------+ Best States ------------- Heat Dissipation 85 Energy Generation 10 Energy Capacity 1450 Matter Stores 300 Matter Capacity 300 Sight Range 16 Terrain Scan Density 10 Resistance: KI 10 Evasion (%) 40 Recoil Reduction 2 Item Schematics ----------------- None Robot Schematics ------------------ None Fabricated ------------ Nothing Repaired ---------- Nothing Studied --------- None Alien Tech Used ----------------- None Achievements -------------- None Challenges ------------ None Game ------ Seed BladeMissileMallet Manual? 0 Play Time 00:10:38 Cumulative 47.5 hours Start 2026.07.21 @ 11:19:08 End 2026.07.21 @ 11:24:39 Sessions 1 Manual Loads 0 Difficulty Rogue Special Mode None Game No. 116 Rogue 116 Adventurer 0 Explorer 0 Win Type - Total 0 Types 0/0/0/0/0/0/0/0/0/0 Lore% 21 Gallery% 30 Achievement% 27 Wizard Run 0 Options --------- Layout 1 ASCII 0 Keyboard 1 Movement Vi Keybinds 0 Fullscreen 1 Font 24/Smallcaps Map View 50x35 Zoom Use 0% Tactical HUD 1 Map Filters NONE Filters NONE Steam 1 RUN: 86187e9f-8be9-4621-a5dd-b13a7f6d9081